fUST/lending_fUST_20250227
["ID","MTS","AMOUNT","RATE_DAILY","PERIOD"]
[354691620,1740621049942,-429.14677085,0.0004658,120]
[354691621,1740621049952,-429.14677085,0.0004658,120]
[354691622,1740621049962,-429.14677085,0.0004658,120]
[354691623,1740621049971,-429.14,0.0004658,120]
[354691624,1740621049980,-1001.34246532,0.0004658,120]
[354691625,1740621049989,-1001.34246532,0.0004658,120]
[354691626,1740621049998,-1001.34246532,0.0004658,120]
[354691627,1740621050007,-1001.34246532,0.0004658,120]
[354691628,1740621050016,-1001.34246532,0.0004658,120]
[354691629,1740621050026,-1001.34246532,0.0004658,120]
[354691630,1740621050035,-1001.34246532,0.0004658,120]
[354691631,1740621050044,-1001.34246532,0.0004658,120]
[354691632,1740621050053,-1001.34246532,0.0004658,120]
[354691633,1740621050062,-1001.34246532,0.0004658,120]
[354691634,1740621050072,-1001.34246532,0.0004658,120]
[354691635,1740621050081,-1001.34246532,0.0004658,120]
[354691636,1740621050091,-1001.34246532,0.0004658,120]
[354691637,1740621050099,-1001.34246532,0.0004658,120]
[354691638,1740621050108,-1001.34246532,0.0004658,120]
[354691639,1740621050117,-1001.34246532,0.0004658,120]
[354691640,1740621050126,-1001.34246532,0.0004658,120]
[354691641,1740621050135,-1001.34246532,0.0004658,120]
[354691642,1740621050144,-1001.34246532,0.0004658,120]
[354691643,1740621050154,-1001.34,0.0004658,120]
[354691644,1740621050163,-290.55683349,0.0004658,120]
[354691645,1740621050172,-290.55683349,0.0004658,120]
[354691646,1740621050181,-290.55683349,0.0004658,120]
[354691647,1740621050190,-290.55683349,0.0004658,120]
[354691648,1740621050200,-290.55683349,0.0004658,120]
[354691649,1740621050209,-290.55683349,0.0004658,120]
[354691650,1740621050220,-290.55683349,0.0004658,120]
[354691651,1740621050229,-290.55683349,0.0004658,120]
[354691652,1740621050238,-290.55683349,0.0004658,120]
[354691653,1740621050248,-290.55683349,0.0004658,120]
[354691654,1740621050257,-290.55683349,0.0004658,120]
[354691655,1740621050266,-290.55683349,0.0004658,120]
[354691656,1740621050275,-290.55683349,0.0004658,120]
[354691657,1740621050284,-290.55683349,0.0004658,120]
[354691658,1740621050294,-290.55683349,0.0004658,120]
[354691659,1740621050303,-290.55683349,0.0004658,120]
[354691660,1740621050312,-290.55683349,0.0004658,120]
[354691661,1740621050321,-290.55683349,0.0004658,120]
[354691662,1740621050330,-290.55683349,0.0004658,120]
[354691663,1740621050340,-290.55,0.0004658,120]
[354691664,1740621050349,-677.96594482,0.0004658,120]
[354691665,1740621050359,-677.96594482,0.0004658,120]
[354691666,1740621050369,-677.96594482,0.0004658,120]
[354691667,1740621050378,-677.96594482,0.0004658,120]
[354691668,1740621050387,-677.96594482,0.0004658,120]
[354691669,1740621050397,-677.96594482,0.0004658,120]
[354691670,1740621050406,-677.96594482,0.0004658,120]
[354691671,1740621050415,-677.96594482,0.0004658,120]
[354691672,1740621050425,-677.96594482,0.0004658,120]
[354691673,1740621050440,-677.96594482,0.0004658,120]
[354691674,1740621050450,-677.96594482,0.0004658,120]
[354691675,1740621050459,-677.96594482,0.0004658,120]
[354691676,1740621050471,-677.96594482,0.0004658,120]
[354691677,1740621050480,-677.96594482,0.0004658,120]
[354691678,1740621050489,-677.96594482,0.0004658,120]
[354691679,1740621050498,-677.96594482,0.0004658,120]
[354691680,1740621050510,-677.96594482,0.0004658,120]
[354691681,1740621050520,-677.96594482,0.0004658,120]
[354691682,1740621050529,-677.96594482,0.0004658,120]
[354691683,1740621050538,-677.96,0.0004658,120]
[354691684,1740621050548,-1000.0,0.000466,120]
[354691685,1740621050557,-203.18,0.000466,30]
[354691686,1740621050567,-3718.68,0.000466,30]
[354691687,1740621050576,-3397.11,0.000466,30]
[354691688,1740621050587,-2817.5,0.000466,30]
[354691689,1740621050596,-118596.07,0.000466,30]
[354691690,1740621050605,-151.0,0.000466,120]
[354691691,1740621050615,-265.88675,0.000466,120]
[354691692,1740621050624,-272.175112,0.000466,120]
[354691693,1740621050633,-265.88675,0.000466,120]
[354691694,1740621050643,-842.65,0.000466,30]
[354691695,1740621050652,-151.0,0.000466,120]
[354691696,1740621050661,-207.937056,0.000466,120]
[354691697,1740621050670,-151.0,0.000466,120]
[354691698,1740621050679,-480.937455,0.000466,120]
[354691699,1740621050689,-480.937455,0.000466,120]
[354691700,1740621050698,-819.64095,0.000466,120]
[354691701,1740621050708,-819.64095,0.000466,120]
[354691702,1740621050719,-151.0,0.000466,120]
[354691703,1740621050730,-160.0,0.00046798,14]
[354691704,1740621050740,-5000.0,0.00046848,120]
[354691705,1740621050749,-226.0266,0.00046848,30]
[354691706,1740621050759,-226.0266,0.00046848,30]
[354691707,1740621050768,-151.0,0.00046848,120]
[354691708,1740621050778,-151.0,0.00046848,120]
[354691709,1740621050787,-188.664418,0.00046848,120]
[354691710,1740621050796,-333.00145569,0.00046849,120]
[354691711,1740621050805,-504.78364092,0.00046849,120]
[354691712,1740621050814,-464.07554158,0.00046849,120]
[354691713,1740621050824,-500.0,0.00046849,120]
[354691714,1740621050833,-580.8723731,0.00046849,120]
[354691715,1740621050842,-798.33,0.00046849,120]
[354691716,1740621050851,-500.0,0.00046849,120]
[354691717,1740621050862,-262.10947147,0.00046849,120]
[354691718,1740621050871,-504.23182487,0.00046849,120]
[354691719,1740621050881,-535.07,0.00046849,120]
[354691720,1740621050890,-744.25,0.00046849,120]
[354691721,1740621050900,-500.0,0.00046849,120]
[354691722,1740621050909,-504.27858764,0.00046849,120]
[354691723,1740621050918,-500.0,0.00046849,120]
[354691724,1740621050927,-500.0,0.00046849,120]
[354691725,1740621050936,-500.0,0.00046849,120]
[354691726,1740621050946,-243.74711259,0.00046849,120]
[354691727,1740621050955,-500.0,0.00046849,120]
[354691728,1740621050965,-500.0,0.00046849,120]
[354691729,1740621050975,-500.0,0.00046849,120]
[354691730,1740621050984,-500.0,0.00046849,120]
[354691731,1740621050993,-500.0,0.00046849,120]
[354691732,1740621051002,-500.0,0.00046849,120]
[354691733,1740621051011,-500.0,0.00046849,120]
[354691734,1740621051021,-500.0,0.00046849,120]
[354691735,1740621051030,-731.01,0.00046849,120]
[354691736,1740621051039,-504.75214274,0.00046849,120]
[354691737,1740621051048,-763.78,0.00046849,120]
[354691738,1740621051057,-500.0,0.00046849,120]
[354691739,1740621051067,-500.0,0.00046849,120]
[354691740,1740621051076,-522.02388365,0.00046849,120]
[354691741,1740621051085,-500.0,0.00046849,120]
[354691742,1740621051094,-500.0,0.00046849,120]
[354691743,1740621051103,-500.0,0.00046849,120]
[354691744,1740621051112,-787.87,0.00046849,120]
[354691745,1740621051121,-500.0,0.00046849,120]
[354691746,1740621051130,-500.0,0.00046849,120]
[354691747,1740621051140,-500.0,0.00046849,120]
[354691748,1740621051149,-500.0,0.00046849,120]
[354691749,1740621051158,-527.01,0.00046849,120]
[354691750,1740621051167,-621.65923511,0.00046849,120]
[354691751,1740621051176,-500.0,0.00046849,120]
[354691752,1740621051186,-500.0,0.00046849,120]
[354691753,1740621051195,-500.0,0.00046849,120]
[354691754,1740621051204,-881.4,0.00046849,120]
[354691755,1740621051214,-500.0,0.00046849,120]
[354691756,1740621051223,-618.52948978,0.00046849,120]
[354691757,1740621051232,-244.23229312,0.00046849,120]
[354691758,1740621051241,-500.0,0.00046849,120]
[354691759,1740621051250,-500.0,0.00046849,120]
[354691760,1740621051259,-272.96340347,0.00046849,120]
[354691761,1740621051268,-500.0,0.00046849,120]
[354691762,1740621051277,-500.0,0.00046849,120]
[354691763,1740621051287,-500.0,0.00046849,120]
[354691764,1740621051296,-500.0,0.00046849,120]
[354691765,1740621051305,-500.0,0.00046849,120]
[354691766,1740621051314,-500.0,0.00046849,120]
[354691767,1740621051323,-500.0,0.00046849,120]
[354691768,1740621051333,-507.02473555,0.00046849,120]
[354691769,1740621051342,-866.64,0.00046849,120]
[354691770,1740621051351,-500.0,0.00046849,120]
[354691771,1740621051361,-653.32,0.00046849,120]
[354691772,1740621051371,-1729.45,0.00046849,120]
[354691773,1740621051380,-508.69,0.00046849,120]
[354691774,1740621051389,-500.0,0.00046849,120]
[354691775,1740621051399,-500.0,0.00046849,120]
[354691776,1740621051408,-500.0,0.00046849,120]
[354691777,1740621051417,-890.09,0.00046849,120]
[354691778,1740621051427,-503.17116881,0.00046849,120]
[354691779,1740621051439,-500.0,0.00046849,120]
[354691780,1740621051448,-712.38,0.00046849,120]
[354691781,1740621051458,-560.17,0.00046849,120]
[354691782,1740621051470,-796.64,0.00046849,120]
[354691783,1740621051480,-825.17,0.00046849,120]
[354691784,1740621051489,-795.99,0.00046849,120]
[354691785,1740621051498,-500.0,0.00046849,120]
[354691786,1740621051508,-505.70665015,0.00046849,120]
[354691787,1740621051518,-151.0,0.00046849,120]
[354691788,1740621051528,-742.43,0.00046849,120]
[354691789,1740621051537,-789.5,0.00046849,120]
[354691790,1740621051547,-151.0,0.00046849,120]
[354691791,1740621051557,-151.0,0.00046849,120]
[354691792,1740621051566,-265.88675,0.00046849,120]
[354691793,1740621051575,-265.88675,0.00046849,120]
[354691794,1740621051584,-265.88675,0.00046849,120]
[354691795,1740621051594,-265.88675,0.00046849,120]
[354691796,1740621051603,-265.88675,0.00046849,120]
[354691797,1740621051612,-265.88675,0.00046849,120]
[354691798,1740621051621,-505.54322603,0.00046849,120]
[354691799,1740621051630,-505.50686181,0.00046849,120]
[354691800,1740621051639,-807.05,0.00046849,120]
[354691801,1740621051649,-751.95,0.00046849,120]
[354691802,1740621051658,-2621.94,0.00046849,120]
[354691803,1740621051667,-500.0,0.00046849,120]
[354691804,1740621051676,-500.0,0.00046849,120]
[354691805,1740621051686,-500.0,0.00046849,120]
[354691806,1740621051695,-659.92,0.00046849,120]
[354691807,1740621051704,-502.34639093,0.00046849,120]
[354691808,1740621051715,-1728.63,0.00046849,120]
[354691809,1740621051724,-500.0,0.00046849,120]
[354691810,1740621051734,-166.85823327,0.00046849,120]
[354691811,1740621051743,-500.0,0.00046849,120]
[354691812,1740621051753,-1301.42,0.00046849,120]
[354691813,1740621051762,-500.0,0.00046849,120]
[354691814,1740621051771,-330.02628145,0.00046849,120]
[354691815,1740621051780,-500.0,0.00046849,120]
[354691816,1740621051790,-500.0,0.00046849,120]
[354691817,1740621051799,-500.0,0.00046849,120]
[354691818,1740621051808,-738.77,0.00046849,120]
[354691819,1740621051818,-151.0,0.00046849,120]
[354691820,1740621051827,-704.31,0.00046849,120]
[354691821,1740621051836,-151.0,0.00046849,120]
[354691822,1740621051846,-261.419983,0.00046849,120]
[354691823,1740621051855,-1890.29,0.00046849,120]
[354691824,1740621051864,-503.8021486,0.00046849,120]
[354691825,1740621051874,-500.0,0.00046849,120]
[354691826,1740621051883,-502.02016129,0.00046849,120]
[354691827,1740621051892,-500.0,0.00046849,120]
[354691828,1740621051902,-500.0,0.00046849,120]
[354691829,1740621051912,-584.44,0.00046849,120]
[354691830,1740621051921,-500.0,0.00046849,120]
[354691831,1740621051931,-500.0,0.00046849,120]
[354691832,1740621051941,-500.0,0.00046849,120]
[354691833,1740621051951,-500.0,0.00046849,120]
[354691834,1740621051960,-503.9467767,0.00046849,120]
[354691835,1740621051971,-2877.3,0.00046849,120]
[354691836,1740621051980,-500.0,0.00046849,120]
[354691837,1740621051990,-500.0,0.00046849,120]
[354691838,1740621052000,-503.2114575,0.00046849,120]
[354691839,1740621052010,-931.04,0.00046849,120]
[354691840,1740621052019,-500.0,0.00046849,120]
[354691841,1740621052028,-476.8325024,0.00046849,120]
[354691842,1740621052037,-500.0,0.00046849,120]
[354691843,1740621052046,-500.0,0.00046849,120]
[354691844,1740621052056,-500.0,0.00046849,120]
[354691845,1740621052065,-2284.95,0.00046849,120]
[354691846,1740621052075,-500.0,0.00046849,120]
[354691847,1740621052084,-557.04,0.00046849,120]
[354691848,1740621052227,-1337.46,0.00046849,120]
[354691849,1740621052237,-256.46437848,0.00046849,30]
[354691850,1740621052247,-500.0,0.00046849,120]
[354691851,1740621052256,-2537.17,0.00046849,120]
[354691852,1740621052266,-500.0,0.00046849,120]
[354691853,1740621052275,-500.0,0.00046849,120]
[354691854,1740621052285,-500.0,0.00046849,120]
[354691855,1740621052295,-500.0,0.00046849,120]
[354691856,1740621052304,-529.00279268,0.00046849,120]
[354691857,1740621052314,-500.0,0.00046849,120]
[354691858,1740621052323,-500.0,0.00046849,120]
[354691859,1740621052333,-500.0,0.00046849,120]
[354691860,1740621052342,-300.0,0.00046849,120]
[354691861,1740621052352,-563.42,0.00046849,120]
[354691862,1740621052361,-501.96289045,0.00046849,120]
[354691863,1740621052370,-2582.09,0.00046849,120]
[354691864,1740621052380,-500.0,0.00046849,120]
[354691865,1740621052390,-500.0,0.00046849,120]
[354691866,1740621052399,-500.0,0.00046849,120]
[354691867,1740621052409,-500.0,0.00046849,120]
[354691868,1740621052419,-563.3,0.00046849,120]
[354691869,1740621052434,-1556.03,0.00046849,120]
[354691870,1740621052443,-500.0,0.00046849,120]
[354691871,1740621052453,-500.0,0.00046849,120]
[354691872,1740621052463,-503.44527463,0.00046849,120]
[354691873,1740621052474,-1318.81,0.00046849,120]
[354691874,1740621052483,-500.0,0.00046849,120]
[354691875,1740621052493,-674.17,0.00046849,120]
[354691876,1740621052502,-1411.92,0.00046849,120]
[354691877,1740621052513,-500.0,0.00046849,120]
[354691878,1740621052523,-784.49,0.00046849,120]
[354691879,1740621052534,-550.99030266,0.00046849,120]
[354691880,1740621052545,-501.9431306,0.00046849,120]
[354691881,1740621052555,-611.75,0.00046849,120]
[354691882,1740621052566,-1783.53,0.00046849,120]
[354691883,1740621052575,-500.0,0.00046849,120]
[354691884,1740621052584,-501.78900079,0.00046849,120]
[354691885,1740621052594,-682.76,0.00046849,120]
[354691886,1740621052604,-151.0,0.00046849,120]
[354691887,1740621052614,-1677.22,0.00046849,120]
[354691888,1740621052624,-627.68,0.00046849,120]
[354691889,1740621052634,-151.0,0.00046849,120]
[354691890,1740621052645,-500.0,0.00046849,120]
[354691891,1740621052656,-151.0,0.00046849,120]
[354691892,1740621052666,-151.0,0.00046849,120]
[354691893,1740621052675,-500.0,0.00046849,120]
[354691894,1740621052685,-151.0,0.00046849,120]
[354691895,1740621052695,-151.0,0.00046849,120]
[354691896,1740621052705,-500.0,0.00046849,120]
[354691897,1740621052717,-151.0,0.00046849,120]
[354691898,1740621052727,-268.457548,0.00046849,120]
[354691899,1740621052736,-500.0,0.00046849,120]
[354691900,1740621052745,-282.72250265,0.00046849,120]
[354691901,1740621052754,-500.0,0.00046849,14]
[354691902,1740621052763,-608.91,0.00046849,120]
[354691903,1740621052773,-1501.92,0.00046849,120]
[354691904,1740621052782,-814.47,0.00046849,120]
[354691905,1740621052791,-3151.73,0.00046849,120]
[354691906,1740621052800,-1000.0,0.00046849,120]
[354691907,1740621052809,-502.68018266,0.00046849,120]
[354691908,1740621052819,-500.0,0.00046849,120]
[354691909,1740621052828,-500.0,0.00046849,120]
[354691910,1740621052838,-1474.57,0.00046849,120]
[354691911,1740621052847,-500.0,0.00046849,120]
[354691912,1740621052857,-500.0,0.00046849,120]
[354691913,1740621052866,-500.0,0.00046849,120]
[354691914,1740621052876,-502.0141304,0.00046849,120]
[354691915,1740621052885,-500.0,0.00046849,30]
[354691916,1740621052895,-660.88,0.00046849,120]
[354691917,1740621052904,-500.0,0.00046849,120]
[354691918,1740621052913,-1430.54,0.00046849,120]
[354691919,1740621052923,-151.0,0.00046849,120]
[354691920,1740621052932,-151.0,0.00046849,120]
[354691921,1740621052942,-151.0,0.00046849,120]
[354691922,1740621052951,-582.05,0.00046849,120]
[354691923,1740621052960,-151.0,0.00046849,120]
[354691924,1740621052970,-503.88204629,0.00046849,120]
[354691925,1740621052979,-151.0,0.00046849,120]
[354691926,1740621052989,-151.0,0.00046849,120]
[354691927,1740621052998,-1213.97,0.00046849,120]
[354691928,1740621053007,-297.939629,0.00046849,120]
[354691929,1740621053017,-500.0,0.00046849,120]
[354691930,1740621053026,-500.0,0.00046849,30]
[354691931,1740621053035,-918.71,0.00046849,120]
[354691932,1740621053045,-502.67217593,0.00046849,120]
[354691933,1740621053054,-500.0,0.00046849,120]
[354691934,1740621053063,-711.38,0.00046849,120]
[354691935,1740621053072,-500.0,0.00046849,120]
[354691936,1740621053082,-500.0,0.00046849,120]
[354691937,1740621053091,-249.947543,0.00046849,120]
[354691938,1740621053099,-500.0,0.00046849,120]
[354691939,1740621053109,-500.0,0.00046849,120]
[354691940,1740621053118,-500.0,0.00046849,120]
[354691941,1740621053127,-1187.66,0.00046849,120]
[354691942,1740621053137,-769.53,0.00046849,120]
[354691943,1740621053147,-502.57649427,0.00046849,120]
[354691944,1740621053157,-500.0,0.00046849,120]
[354691945,1740621053166,-2430.58,0.00046849,120]
[354691946,1740621053176,-500.0,0.00046849,120]
[354691947,1740621053185,-410.76972131,0.00046849,120]
[354691948,1740621053195,-500.0,0.00046849,120]
[354691949,1740621053204,-500.0,0.00046849,120]
[354691950,1740621053213,-500.0,0.00046849,120]
[354691951,1740621053224,-504.50096231,0.00046849,120]
[354691952,1740621053233,-500.0,0.00046849,120]
[354691953,1740621053242,-903.8,0.00046849,120]
[354691954,1740621053251,-500.0,0.00046849,120]
[354691955,1740621053261,-503.79797869,0.00046849,120]
[354691956,1740621053270,-151.0,0.00046849,120]
[354691957,1740621053280,-165.801969,0.00046849,120]
[354691958,1740621053289,-538.28,0.00046849,120]
[354691959,1740621053298,-503.00599243,0.00046849,120]
[354691960,1740621053308,-500.0,0.00046849,120]
[354691961,1740621053318,-2515.58,0.00046849,120]
[354691962,1740621053327,-500.0,0.00046849,120]
[354691963,1740621053337,-500.0,0.00046849,120]
[354691964,1740621053346,-500.0,0.00046849,120]
[354691965,1740621053355,-500.0,0.00046849,120]
[354691966,1740621053364,-986.14,0.00046849,120]
[354691967,1740621053374,-500.0,0.00046849,120]
[354691968,1740621053383,-500.0,0.00046849,120]
[354691969,1740621053393,-500.0,0.00046849,120]
[354691970,1740621053402,-500.0,0.00046849,120]
[354691971,1740621053411,-503.81800924,0.00046849,120]
[354691972,1740621053420,-500.0,0.00046849,120]
[354691973,1740621053431,-500.0,0.00046849,15]
[354691974,1740621053442,-408.88484557,0.00046849,120]
[354691975,1740621053452,-708.48,0.00046849,120]
[354691976,1740621053462,-500.0,0.00046849,120]
[354691977,1740621053472,-1224.41,0.00046849,120]
[354691978,1740621053482,-500.0,0.00046849,120]
[354691979,1740621053492,-592.54053672,0.00046849,120]
[354691980,1740621053501,-151.0,0.00046849,120]
[354691981,1740621053512,-500.0,0.00046849,120]
[354691982,1740621053522,-218.850713,0.00046849,120]
[354691983,1740621053532,-500.0,0.00046849,120]
[354691984,1740621053541,-500.0,0.00046849,120]
[354691985,1740621053551,-600.97,0.00046849,120]
[354691986,1740621053561,-860.9,0.00046849,120]
[354691987,1740621053571,-500.0,0.00046849,120]
[354691988,1740621053581,-500.0,0.00046849,120]
[354691989,1740621053590,-779.54,0.00046849,120]
[354691990,1740621053600,-500.0,0.00046849,120]
[354691991,1740621053610,-500.0,0.00046849,120]
[354691992,1740621053619,-500.0,0.00046849,120]
[354691993,1740621053627,-500.0,0.00046849,120]
[354691994,1740621053637,-773.830023,0.00046849,120]
[354691995,1740621053647,-773.830023,0.00046849,120]
[354691996,1740621053657,-773.830023,0.00046849,120]
[354691997,1740621053666,-773.830023,0.00046849,120]
[354691998,1740621053676,-500.0,0.00046849,120]
[354691999,1740621053686,-858.42,0.00046849,120]
[354692000,1740621053696,-773.830023,0.00046849,120]
[354692001,1740621053705,-773.830023,0.00046849,120]
[354692002,1740621053716,-500.0,0.00046849,120]
[354692003,1740621053727,-773.830023,0.00046849,120]
[354692004,1740621053736,-773.830023,0.00046849,120]
[354692005,1740621053746,-1330.14,0.00046849,120]
[354692006,1740621053755,-226.0266,0.00046849,30]
[354692007,1740621053764,-226.0266,0.00046849,30]
[354692008,1740621053773,-226.0266,0.00046849,30]
[354692009,1740621053783,-2758.7,0.00046849,120]
[354692010,1740621053793,-502.67013668,0.00046849,120]
[354692011,1740621053803,-226.0266,0.00046849,30]
[354692012,1740621053812,-226.0266,0.00046849,30]
[354692013,1740621053822,-226.0266,0.00046849,30]
[354692014,1740621053831,-500.0,0.00046849,120]
[354692015,1740621053840,-1045.73,0.00046849,120]
[354692016,1740621053850,-638.14,0.00046849,120]
[354692017,1740621053860,-500.0,0.00046849,120]
[354692018,1740621053869,-500.0,0.00046849,120]
[354692019,1740621053879,-151.0,0.00046849,120]
[354692020,1740621053888,-151.0,0.00046849,120]
[354692021,1740621053897,-242.301492,0.00046849,120]
[354692022,1740621053908,-500.0,0.00046849,120]
[354692023,1740621053917,-500.0,0.00046849,45]
[354692024,1740621053927,-500.0,0.00046849,120]
[354692025,1740621053937,-500.0,0.00046849,120]
[354692026,1740621053948,-500.0,0.00046849,120]
[354692027,1740621053959,-500.0,0.00046849,120]
[354692028,1740621053968,-500.0,0.00046849,120]
[354692029,1740621054016,-500.0,0.00046849,120]
[354692030,1740621054028,-500.0,0.00046849,120]
[354692031,1740621054039,-640.2,0.00046849,120]
[354692032,1740621054048,-614.74,0.00046849,120]
[354692033,1740621054059,-523.82368724,0.00046849,120]
[354692034,1740621054068,-9100.55,0.00046849,120]
[354692035,1740621054077,-502.33,0.00046849,120]
[354692036,1740621054086,-151.0,0.00046849,120]
[354692037,1740621054095,-151.0,0.00046849,120]
[354692038,1740621054105,-151.0,0.00046849,120]
[354692039,1740621054115,-35526.73,0.00046849,120]
[354692040,1740621054125,-2154.88,0.00046849,120]
[354692041,1740621054135,-523.0,0.00046849,120]
[354692042,1740621054144,-151.0,0.00046849,120]
[354692043,1740621054153,-14442.73,0.00046849,120]
[354692044,1740621054164,-500.0,0.00046849,120]
[354692045,1740621054173,-169.223577,0.00046849,120]
[354692046,1740621054182,-500.0,0.00046849,120]
[354692047,1740621054191,-2523.54,0.00046849,120]
[354692048,1740621054202,-634.6,0.00046849,120]
[354692049,1740621054211,-500.0,0.00046849,120]
[354692050,1740621054222,-1118.09,0.00046849,120]
[354692051,1740621054232,-529.02,0.00046849,120]
[354692052,1740621054241,-3617.17,0.00046849,120]
[354692053,1740621054250,-503.91605047,0.00046849,120]
[354692054,1740621054259,-500.0,0.00046849,120]
[354692055,1740621054268,-480.937455,0.00046849,120]
[354692056,1740621054277,-500.0,0.00046849,120]
[354692057,1740621054286,-480.937455,0.00046849,120]
[354692058,1740621054295,-678.01,0.00046849,120]
[354692059,1740621054304,-508.96656846,0.00046849,120]
[354692060,1740621054313,-6653.08,0.00046849,120]
[354692061,1740621054322,-500.0,0.00046849,120]
[354692062,1740621054331,-9236.29,0.00046849,120]
[354692063,1740621054340,-480.937455,0.00046849,120]
[354692064,1740621054349,-480.937455,0.00046849,120]
[354692065,1740621054358,-1128.41,0.00046849,120]
[354692066,1740621054367,-500.0,0.00046849,120]
[354692067,1740621054376,-500.0,0.00046849,120]
[354692068,1740621054385,-503.81468828,0.00046849,120]
[354692069,1740621054394,-503.44709126,0.00046849,120]
[354692070,1740621054403,-575.04,0.00046849,120]
[354692071,1740621054412,-504.83393442,0.00046849,120]
[354692072,1740621054422,-500.0,0.00046849,120]
[354692073,1740621054434,-200.0,0.00046849,7]
[354692074,1740621054444,-823.27,0.00046849,120]
[354692075,1740621054453,-500.0,0.00046849,120]
[354692076,1740621054463,-500.0,0.00046849,120]
[354692077,1740621054473,-500.0,0.00046849,120]
[354692078,1740621054482,-500.0,0.00046849,120]
[354692079,1740621054491,-599.05,0.00046849,120]
[354692080,1740621054500,-602.77,0.00046849,120]
[354692081,1740621054511,-500.0,0.00046849,30]
[354692082,1740621054521,-3455.45,0.00046849,120]
[354692083,1740621054531,-500.0,0.00046849,120]
[354692084,1740621054540,-586.04,0.00046849,120]
[354692085,1740621054550,-504.06846257,0.00046849,120]
[354692086,1740621054559,-260.91006125,0.00046849,120]
[354692087,1740621054568,-1295.84,0.00046849,120]
[354692088,1740621054578,-500.0,0.00046849,120]
[354692089,1740621054587,-408.13061721,0.00046849,120]
[354692090,1740621054597,-500.0,0.00046849,120]
[354692091,1740621054606,-522.6053755,0.00046849,120]
[354692092,1740621054616,-503.85129561,0.00046849,120]
[354692093,1740621054625,-1250.93,0.00046849,120]
[354692094,1740621054635,-500.0,0.00046849,120]
[354692095,1740621054644,-819.64095,0.00046849,120]
[354692096,1740621054654,-819.64095,0.00046849,120]
[354692097,1740621054663,-819.64095,0.00046849,120]
[354692098,1740621054673,-2239.39,0.00046849,120]
[354692099,1740621054682,-4509.79,0.00046849,120]
[354692100,1740621054692,-819.64095,0.00046849,120]
[354692101,1740621054701,-503.73822936,0.00046849,120]
[354692102,1740621054711,-819.64095,0.00046849,120]
[354692103,1740621054724,-819.64095,0.00046849,120]
[354692104,1740621054733,-508.71446144,0.00046849,120]
[354692105,1740621054742,-500.0,0.00046849,120]
[354692106,1740621054752,-387.7987415,0.00046849,120]
[354692107,1740621054762,-500.0,0.00046849,120]
[354692108,1740621054771,-1199.64,0.00046849,120]
[354692109,1740621054780,-797.65,0.00046849,120]
[354692110,1740621054790,-10948.58,0.00046849,3]
[354692111,1740621054800,-500.0,0.00046849,120]
[354692112,1740621054810,-500.0,0.00046849,120]
[354692113,1740621054820,-503.73139156,0.00046849,120]
[354692114,1740621054829,-1382.01,0.00046849,120]
[354692115,1740621054839,-2082.25,0.00046849,120]
[354692116,1740621054849,-575.15173286,0.00046849,120]
[354692117,1740621054858,-503.09709829,0.00046849,120]
[354692118,1740621054867,-500.0,0.00046849,120]
[354692119,1740621054878,-500.0,0.00046849,120]